fUSD/lending_fUSD_20250720
["ID","MTS","AMOUNT","RATE_DAILY","PERIOD"]
[373459668,1753015846734,-480.0,0.00019178,2]
[373459669,1753015846743,-480.0,0.00019178,2]
[373459670,1753015846752,-480.0,0.00019178,2]
[373459671,1753015846761,-480.0,0.00019178,2]
[373459672,1753015846770,-480.0,0.00019178,2]
[373459673,1753015846779,-480.0,0.00019178,2]
[373459674,1753015846789,-480.0,0.00019178,2]
[373459675,1753015846798,-480.0,0.00019178,2]
[373459676,1753015846807,-480.0,0.00019178,2]
[373459677,1753015846816,-480.0,0.00019178,2]
[373459678,1753015846826,-480.0,0.00019178,2]
[373459679,1753015846835,-480.0,0.00019178,2]
[373459680,1753015846844,-480.0,0.00019178,2]
[373459681,1753015846854,-480.0,0.00019178,2]
[373459682,1753015846863,-480.0,0.00019178,2]
[373459683,1753015846871,-480.0,0.00019178,2]
[373459684,1753015846881,-480.0,0.00019178,2]
[373459685,1753015846890,-480.0,0.00019178,2]
[373459686,1753015846900,-480.0,0.00019178,2]
[373459687,1753015846910,-480.0,0.00019178,2]
[373459688,1753015846919,-1322.39,0.00019178,2]
[373459689,1753015846929,-849.5,0.00019178,2]
[373459690,1753015846938,-480.0,0.00019178,2]
[373459691,1753015846948,-480.0,0.00019178,2]
[373459692,1753015846957,-480.0,0.00019178,2]
[373459693,1753015846967,-500.0,0.00019178,2]
[373459694,1753015846979,-500.0,0.00019178,2]
[373459695,1753015846989,-480.0,0.00019178,2]
[373459696,1753015846998,-480.0,0.00019178,2]
[373459697,1753015847009,-958.65,0.00019178,2]
[373459698,1753015847019,-480.0,0.00019178,2]
[373459699,1753015847028,-1347.29,0.00019178,2]
[373459700,1753015847038,-480.0,0.00019178,2]
[373459701,1753015847047,-480.0,0.00019178,2]
[373459702,1753015847056,-480.0,0.00019178,2]
[373459703,1753015847065,-480.0,0.00019178,2]
[373459704,1753015847075,-480.0,0.00019178,2]
[373459705,1753015847084,-480.0,0.00019178,2]
[373459706,1753015847093,-480.0,0.00019178,2]
[373459707,1753015847103,-480.0,0.00019178,2]
[373459708,1753015847112,-922.27,0.00019178,2]
[373459709,1753015847121,-464.36925595,0.00019178,2]
[373459710,1753015847131,-480.0,0.00019178,2]
[373459711,1753015847140,-480.0,0.00019178,2]
[373459712,1753015847150,-421.78979739,0.00019178,2]
[373459713,1753015847159,-480.0,0.00019178,2]
[373459714,1753015847169,-480.0,0.00019178,2]
[373459715,1753015847178,-480.0,0.00019178,2]
[373459716,1753015847187,-480.0,0.00019178,2]
[373459717,1753015847198,-518.31,0.00019178,2]
[373459718,1753015847209,-775.15,0.00019178,2]
[373459719,1753015847222,-480.0,0.00019178,2]
[373459720,1753015847231,-480.0,0.00019178,2]
[373459721,1753015847240,-738.86,0.00019178,2]
[373459722,1753015847250,-480.0,0.00019178,2]
[373459723,1753015847263,-480.0,0.00019178,2]
[373459724,1753015847273,-480.0,0.00019178,2]
[373459725,1753015847283,-480.0,0.00019178,2]
[373459726,1753015847296,-480.0,0.00019178,2]
[373459727,1753015847306,-480.0,0.00019178,2]
[373459728,1753015847316,-480.0,0.00019178,2]
[373459729,1753015847326,-480.0,0.00019178,2]
[373459730,1753015847335,-480.0,0.00019178,2]
[373459731,1753015847345,-825.9,0.00019178,2]
[373459732,1753015847355,-440.0,0.00019178,2]
[373459733,1753015847364,-480.0,0.00019178,2]
[373459734,1753015847373,-480.0,0.00019178,2]
[373459735,1753015847383,-575.53458802,0.00019178,2]
[373459736,1753015847392,-480.0,0.00019178,2]
[373459737,1753015847401,-480.0,0.00019178,2]
[373459738,1753015847411,-584.05,0.00019178,2]
[373459739,1753015847421,-480.0,0.00019178,2]
[373459740,1753015847431,-440.0,0.00019178,2]
[373459742,1753015847441,-480.0,0.00019178,2]
[373459743,1753015847450,-480.0,0.00019178,2]
[373459744,1753015847459,-480.0,0.00019178,2]
[373459745,1753015847469,-480.0,0.00019178,2]
[373459746,1753015847478,-480.0,0.00019178,2]
[373459747,1753015847487,-480.0,0.00019178,2]
[373459748,1753015847497,-480.0,0.00019178,2]
[373459749,1753015847506,-480.0,0.00019178,2]
[373459750,1753015847516,-480.0,0.00019178,2]
[373459751,1753015847526,-480.0,0.00019178,2]
[373459752,1753015847535,-480.0,0.00019178,2]
[373459753,1753015847545,-267.73806286,0.00019178,2]
[373459754,1753015847554,-480.0,0.00019178,2]
[373459755,1753015847564,-480.0,0.00019178,2]
[373459756,1753015847574,-480.0,0.00019178,2]
[373459757,1753015847584,-480.0,0.00019178,2]
[373459758,1753015847593,-1562.24,0.00019178,2]
[373459759,1753015847603,-480.0,0.00019178,2]
[373459760,1753015847612,-282.1157501,0.00019178,2]
[373459761,1753015847622,-480.0,0.00019178,2]
[373459762,1753015847632,-480.0,0.00019178,2]
[373459763,1753015847642,-480.0,0.00019178,2]
[373459764,1753015847652,-480.0,0.00019178,2]
[373459765,1753015847662,-480.0,0.00019178,2]
[373459766,1753015847673,-480.0,0.00019178,2]
[373459767,1753015847682,-1088.3,0.00019178,2]
[373459768,1753015847692,-480.0,0.00019178,2]
[373459769,1753015847702,-480.0,0.00019178,2]
[373459770,1753015847712,-480.0,0.00019178,2]
[373459771,1753015847721,-480.0,0.00019178,2]
[373459772,1753015847732,-480.0,0.00019178,2]
[373459773,1753015847741,-480.0,0.00019178,2]
[373459774,1753015847751,-480.0,0.00019178,2]
[373459775,1753015847761,-480.0,0.00019178,2]
[373459776,1753015847771,-480.0,0.00019178,2]
[373459777,1753015847781,-480.0,0.00019178,2]
[373459778,1753015847792,-444.81462555,0.00019178,2]
[373459779,1753015847802,-480.0,0.00019178,2]
[373459780,1753015847813,-158.50558987,0.00019178,2]
[373459781,1753015847823,-480.0,0.00019178,2]
[373459782,1753015847833,-480.0,0.00019178,2]
[373459783,1753015847843,-480.0,0.00019178,2]
[373459784,1753015847852,-443.9100564,0.00019178,2]
[373459785,1753015847863,-480.0,0.00019178,2]
[373459786,1753015847873,-480.0,0.00019178,2]
[373459787,1753015847882,-480.0,0.00019178,2]
[373459788,1753015847892,-480.0,0.00019178,2]
[373459789,1753015847903,-553.54,0.00019178,2]
[373459790,1753015847912,-385.73651747,0.00019178,2]
[373459791,1753015847922,-480.0,0.00019178,2]
[373459792,1753015847932,-480.0,0.00019178,2]
[373459793,1753015847942,-3020.78,0.00019178,2]
[373459794,1753015847951,-480.0,0.00019178,2]
[373459795,1753015847961,-480.0,0.00019178,2]
[373459796,1753015847971,-1663.0,0.00019178,2]
[373459797,1753015847981,-8737.93,0.00019178,2]
[373459798,1753015847990,-480.0,0.00019178,2]
[373459799,1753015848000,-716.51,0.00019178,2]
[373459800,1753015848010,-480.0,0.00019178,2]
[373459801,1753015848020,-480.0,0.00019178,2]
[373459802,1753015848029,-442.34132527,0.00019178,2]
[373459803,1753015848039,-500.0,0.00019178,2]
[373459804,1753015848049,-480.0,0.00019178,2]
[373459805,1753015848059,-501.65,0.00019178,2]
[373459806,1753015848070,-500.0,0.00019178,2]
[373459807,1753015848079,-480.0,0.00019178,2]
[373459808,1753015848089,-480.0,0.00019178,2]
[373459809,1753015848099,-480.0,0.00019178,2]
[373459810,1753015848109,-480.0,0.00019178,2]
[373459811,1753015848118,-447.33306187,0.00019178,2]
[373459812,1753015848128,-480.0,0.00019178,2]
[373459813,1753015848141,-500.0,0.00019178,2]
[373459814,1753015848150,-500.0,0.00019178,2]
[373459815,1753015848160,-480.0,0.00019178,2]
[373459816,1753015848170,-480.0,0.00019178,2]
[373459818,1753015848180,-480.0,0.00019178,2]
[373459820,1753015848190,-480.0,0.00019178,2]
[373459821,1753015848200,-1151.8,0.00019178,2]
[373459823,1753015848210,-1826.48,0.00019178,2]
[373459825,1753015848223,-480.0,0.00019178,2]
[373459827,1753015848233,-480.0,0.00019178,2]
[373459829,1753015848242,-480.0,0.00019178,2]
[373459831,1753015848252,-480.0,0.00019178,2]
[373459833,1753015848262,-480.0,0.00019178,2]
[373459835,1753015848272,-543.96,0.00019178,2]
[373459837,1753015848282,-157.437003,0.00019178,2]
[373459839,1753015848294,-158.040475,0.00019178,2]
[373459840,1753015848304,-507.84605469,0.00019178,2]
[373459841,1753015848314,-991.14,0.00019178,2]
[373459842,1753015848325,-480.0,0.00019178,2]
[373459843,1753015848334,-440.0,0.00019178,2]
[373459844,1753015848344,-1543.29,0.00019178,2]
[373459845,1753015848354,-480.0,0.00019178,2]
[373459846,1753015848364,-1083.692683,0.00019178,2]
[373459847,1753015848374,-480.0,0.00019178,2]
[373459848,1753015848383,-480.0,0.00019178,2]
[373459849,1753015848394,-480.0,0.00019178,2]
[373459850,1753015848404,-1150.9,0.00019178,2]
[373459851,1753015848413,-1098.146936,0.00019178,2]
[373459852,1753015848423,-579.46,0.00019178,2]
[373459853,1753015848433,-328.3732872,0.00019178,2]
[373459854,1753015848444,-480.0,0.00019178,2]
[373459855,1753015848454,-769.41,0.00019178,2]
[373459856,1753015848464,-480.0,0.00019178,2]
[373459857,1753015848474,-810.62,0.00019178,2]
[373459858,1753015848484,-480.0,0.00019178,2]
[373459859,1753015848494,-480.0,0.00019178,2]
[373459860,1753015848504,-480.0,0.00019178,2]
[373459862,1753015848514,-482.89651652,0.00019178,2]
[373459864,1753015848524,-425.82644294,0.00019178,2]
[373459866,1753015848534,-480.0,0.00019178,2]
[373459868,1753015848544,-480.0,0.00019178,2]
[373459870,1753015848554,-480.0,0.00019178,2]
[373459872,1753015848565,-1534.64,0.00019178,2]
[373459874,1753015848575,-480.0,0.00019178,2]
[373459876,1753015848585,-480.0,0.00019178,2]
[373459878,1753015848595,-480.0,0.00019178,2]
[373459880,1753015848605,-1270.3,0.00019178,2]
[373459882,1753015848616,-480.0,0.00019178,2]
[373459884,1753015848626,-480.0,0.00019178,2]
[373459887,1753015848636,-480.0,0.00019178,2]
[373459889,1753015848646,-480.0,0.00019178,2]
[373459891,1753015848655,-1216.98,0.00019178,2]
[373459893,1753015848666,-427.80022171,0.00019178,2]
[373459895,1753015848675,-480.0,0.00019178,2]
[373459897,1753015848685,-480.0,0.00019178,2]
[373459899,1753015848695,-480.0,0.00019178,2]
[373459901,1753015848704,-261.52405641,0.00019178,2]
[373459903,1753015848715,-480.0,0.00019178,2]
[373459905,1753015848728,-499.1,0.00019178,2]
[373459907,1753015848742,-610.41,0.00019178,2]
[373459909,1753015848752,-480.0,0.00019178,2]
[373459911,1753015848762,-590.33,0.00019178,2]
[373459913,1753015848772,-480.0,0.00019178,2]
[373459915,1753015848782,-1312.82,0.00019178,2]
[373459917,1753015848792,-480.0,0.00019178,2]
[373459919,1753015848802,-946.68,0.00019178,2]
[373459921,1753015848812,-480.0,0.00019178,2]
[373459923,1753015848822,-512.70402065,0.00019178,2]
[373459925,1753015848832,-480.0,0.00019178,2]
[373459927,1753015848842,-480.0,0.00019178,2]
[373459929,1753015848852,-698.12,0.00019178,2]
[373459931,1753015848862,-1063.71,0.00019178,2]
[373459933,1753015848873,-607.90511581,0.00019178,2]
[373459935,1753015848883,-664.93,0.00019178,2]
[373459938,1753015848893,-480.0,0.00019178,2]
[373459940,1753015848903,-444.98434484,0.00019178,2]
[373459942,1753015848913,-3290.61,0.00019178,2]
[373459944,1753015848922,-884.35371,0.00019178,2]
[373459946,1753015848932,-480.0,0.00019178,2]
[373459948,1753015848943,-1155.59,0.00019178,2]
[373459950,1753015848953,-624.63,0.00019178,2]
[373459952,1753015848963,-396.44713848,0.00019178,2]
[373459954,1753015848973,-423.48040942,0.00019178,2]
[373459956,1753015848983,-480.0,0.00019178,2]
[373459958,1753015848993,-480.0,0.00019178,2]
[373459960,1753015849002,-480.0,0.00019178,2]
[373459962,1753015849012,-480.0,0.00019178,2]
[373459964,1753015849023,-2174.7,0.00019178,2]
[373459966,1753015849033,-480.0,0.00019178,2]
[373459968,1753015849045,-480.0,0.00019178,2]
[373459970,1753015849055,-480.0,0.00019178,2]
[373459973,1753015849065,-480.0,0.00019178,2]
[373459975,1753015849075,-480.0,0.00019178,2]
[373459977,1753015849086,-1319.2,0.00019178,2]
[373459979,1753015849096,-173.81353884,0.00019178,2]
[373459982,1753015849112,-480.0,0.00019178,2]
[373459984,1753015849123,-480.0,0.00019178,2]
[373459986,1753015849134,-815.87,0.00019178,2]
[373459988,1753015849144,-480.0,0.00019178,2]
[373459990,1753015849154,-480.0,0.00019178,2]
[373459992,1753015849164,-423.51339601,0.00019178,2]
[373459994,1753015849174,-445.8344554,0.00019178,2]
[373459996,1753015849184,-2053.44,0.00019178,2]
[373459998,1753015849195,-480.0,0.00019178,2]
[373460000,1753015849206,-480.0,0.00019178,2]
[373460002,1753015849216,-480.0,0.00019178,2]
[373460004,1753015849230,-480.0,0.00019178,2]
[373460006,1753015849240,-480.0,0.00019178,2]
[373460008,1753015849250,-2792.42,0.00019178,2]
[373460010,1753015849260,-480.0,0.00019178,2]
[373460012,1753015849271,-480.0,0.00019178,2]
[373460015,1753015849281,-5364.12,0.00019178,2]
[373460017,1753015849291,-480.0,0.00019178,2]
[373460019,1753015849302,-480.0,0.00019178,2]
[373460021,1753015849313,-480.0,0.00019178,2]
[373460023,1753015849322,-480.0,0.00019178,2]
[373460025,1753015849333,-814.27,0.00019178,2]
[373460027,1753015849343,-480.0,0.00019178,2]
[373460029,1753015849352,-480.0,0.00019178,2]
[373460031,1753015849362,-480.0,0.00019178,2]
[373460033,1753015849372,-480.0,0.00019178,2]
[373460035,1753015849382,-480.0,0.00019178,2]
[373460037,1753015849392,-460.0,0.00019178,2]
[373460039,1753015849402,-588.51,0.00019178,2]
[373460041,1753015849412,-849.43,0.00019178,2]
[373460044,1753015849425,-480.0,0.00019178,2]
[373460046,1753015849435,-1409.36,0.00019178,2]
[373460048,1753015849446,-158.872504,0.00019178,2]
[373460050,1753015849455,-156.255148,0.00019178,2]
[373460052,1753015849466,-480.0,0.00019178,2]
[373460054,1753015849476,-480.0,0.00019178,2]
[373460056,1753015849486,-480.0,0.00019178,2]
[373460058,1753015849496,-1485.61,0.00019178,2]
[373460060,1753015849506,-443.2277152,0.00019178,2]
[373460062,1753015849517,-3322.44,0.00019178,2]
[373460064,1753015849527,-480.0,0.00019178,2]
[373460066,1753015849537,-480.0,0.00019178,2]
[373460068,1753015849547,-480.0,0.00019178,2]
[373460070,1753015849557,-480.0,0.00019178,2]
[373460073,1753015849567,-480.0,0.00019178,2]
[373460075,1753015849577,-480.0,0.00019178,2]
[373460077,1753015849586,-927.63,0.00019178,2]
[373460079,1753015849596,-480.0,0.00019178,2]
[373460081,1753015849606,-480.0,0.00019178,2]
[373460083,1753015849616,-480.0,0.00019178,2]
[373460085,1753015849626,-480.0,0.00019178,2]
[373460087,1753015849636,-373.57121855,0.00019178,2]
[373460089,1753015849647,-480.0,0.00019178,2]
[373460091,1753015849656,-480.0,0.00019178,2]
[373460093,1753015849666,-480.0,0.00019178,2]
[373460095,1753015849676,-652.03,0.00019178,2]
[373460097,1753015849687,-480.0,0.00019178,2]
[373460099,1753015849697,-480.0,0.00019178,2]
[373460101,1753015849708,-420.0,0.00019178,2]
[373460104,1753015849719,-480.0,0.00019178,2]
[373460106,1753015849728,-645.68,0.00019178,2]
[373460108,1753015849739,-480.0,0.00019178,2]
[373460110,1753015849748,-480.0,0.00019178,2]
[373460112,1753015849758,-480.0,0.00019178,2]
[373460114,1753015849768,-480.0,0.00019178,2]
[373460116,1753015849779,-1002.31,0.00019178,2]
[373460118,1753015849788,-480.0,0.00019178,2]
[373460120,1753015849798,-480.0,0.00019178,2]
[373460122,1753015849808,-480.0,0.00019178,2]
[373460124,1753015849818,-1009.74,0.00019178,2]
[373460126,1753015849829,-157.16579747,0.00019178,2]
[373460129,1753015849840,-587.03,0.00019178,2]
[373460131,1753015849849,-441.35585265,0.00019178,2]
[373460133,1753015849859,-442.90354761,0.00019178,2]
[373460135,1753015849869,-480.0,0.00019178,2]
[373460137,1753015849880,-480.0,0.00019178,2]
[373460139,1753015849890,-5202.86,0.00019178,2]
[373460141,1753015849899,-480.0,0.00019178,2]
[373460143,1753015849909,-480.0,0.00019178,2]
[373460145,1753015849919,-3115.39,0.00019178,2]
[373460147,1753015849929,-480.0,0.00019178,2]
[373460150,1753015849940,-161.238037,0.00019178,2]
[373460151,1753015849951,-480.0,0.00019178,2]
[373460152,1753015849961,-535.63180062,0.00019178,2]
[373460153,1753015849971,-480.0,0.00019178,2]
[373460154,1753015849981,-480.0,0.00019178,2]
[373460155,1753015849991,-460.0,0.00019178,2]
[373460156,1753015850001,-1821.28,0.00019178,2]
[373460157,1753015850011,-460.0,0.00019178,2]
[373460158,1753015850021,-480.0,0.00019178,2]
[373460159,1753015850031,-1370.8,0.00019178,2]
[373460161,1753015850041,-480.0,0.00019178,2]
[373460163,1753015850050,-929.9,0.00019178,2]
[373460165,1753015850060,-480.0,0.00019178,2]
[373460167,1753015850069,-905.27,0.00019178,2]
[373460169,1753015850079,-651.44,0.00019178,2]
[373460171,1753015850089,-666.74,0.00019178,2]
[373460173,1753015850099,-480.0,0.00019178,2]
[373460175,1753015850108,-916.65,0.00019178,2]
[373460177,1753015850118,-1263.04,0.00019178,2]
[373460179,1753015850128,-480.0,0.00019178,2]
[373460181,1753015850138,-480.0,0.00019178,2]
[373460183,1753015850147,-976.85,0.00019178,2]
[373460185,1753015850157,-480.0,0.00019178,2]
[373460187,1753015850166,-480.0,0.00019178,2]
[373460189,1753015850176,-518.33,0.00019178,2]
[373460191,1753015850186,-480.0,0.00019178,2]
[373460219,1753015850197,-4606.25,0.00019178,2]
[373460226,1753015850482,-884.31,0.00019178,2]
[373460228,1753015850492,-480.0,0.00019178,2]
[373460230,1753015850502,-480.0,0.00019178,2]
[373460232,1753015850511,-736.31,0.00019178,2]
[373460234,1753015850520,-2023.41,0.00019178,2]
[373460236,1753015850529,-440.0,0.00019178,2]
[373460238,1753015850539,-480.0,0.00019178,2]
[373460240,1753015850548,-480.0,0.00019178,2]
[373460242,1753015850558,-480.0,0.00019178,2]
[373460244,1753015850567,-825.07,0.00019178,2]
[373460246,1753015850577,-480.0,0.00019178,2]
[373460248,1753015850586,-480.0,0.00019178,2]
[373460250,1753015850595,-422.05776643,0.00019178,2]
[373460252,1753015850605,-480.0,0.00019178,2]
[373460254,1753015850614,-480.0,0.00019178,2]
[373460256,1753015850624,-1036.73,0.00019178,2]
[373460258,1753015850634,-4037.35,0.00019178,2]
[373460260,1753015850643,-480.0,0.00019178,2]
[373460262,1753015850653,-480.0,0.00019178,2]
[373460264,1753015850663,-1369.07,0.00019178,2]
[373460266,1753015850672,-728.83,0.00019178,2]
[373460268,1753015850683,-1230.9,0.00019178,2]
[373460270,1753015850694,-480.0,0.00019178,2]
[373460272,1753015850704,-480.0,0.00019178,2]
[373460274,1753015850714,-891.86,0.00019178,2]
[373460276,1753015850724,-480.0,0.00019178,2]
[373460278,1753015850734,-549.76,0.00019178,2]
[373460280,1753015850743,-183.49487,0.00019178,2]
[373460282,1753015850753,-480.0,0.00019178,2]
[373460284,1753015850763,-480.0,0.00019178,2]
[373460287,1753015850773,-728.28,0.00019178,2]
[373460289,1753015850783,-1839.76,0.00019178,2]
[373460291,1753015850792,-480.0,0.00019178,2]
[373460293,1753015850802,-181.325925,0.00019178,2]
[373460295,1753015850812,-1334.59,0.00019178,2]
[373460297,1753015850822,-480.0,0.00019178,2]
[373460299,1753015850832,-480.0,0.00019178,2]
[373460301,1753015850842,-987.63,0.00019178,2]
[373460303,1753015850852,-480.0,0.00019178,2]
[373460305,1753015850862,-480.0,0.00019178,2]
[373460307,1753015850871,-664.21,0.00019178,2]
[373460309,1753015850880,-480.0,0.00019178,2]
[373460310,1753015850890,-480.0,0.00019178,2]
[373460313,1753015850899,-480.0,0.00019178,2]
[373460315,1753015850909,-480.0,0.00019178,2]
[373460317,1753015850918,-480.0,0.00019178,2]
[373460319,1753015850928,-735.37,0.00019178,2]
[373460321,1753015850937,-872.61,0.00019178,2]
[373460322,1753015850948,-480.0,0.00019178,2]
[373460325,1753015850958,-480.0,0.00019178,2]
[373460327,1753015850968,-480.0,0.00019178,2]
[373460328,1753015850978,-444.82416294,0.00019178,2]
[373460331,1753015850988,-4122.55,0.00019178,2]
[373460332,1753015850998,-1760.06,0.00019178,2]
[373460335,1753015851010,-488.34,0.00019178,2]
[373460337,1753015851020,-571.03926722,0.00019178,2]
[373460339,1753015851030,-1750.62,0.00019178,2]
[373460341,1753015851040,-1138.27,0.00019178,2]
[373460343,1753015851050,-480.0,0.00019178,2]
[373460345,1753015851060,-3000.24,0.00019178,2]
[373460347,1753015851069,-480.0,0.00019178,2]
[373460349,1753015851078,-460.0,0.00019178,2]
[373460350,1753015851088,-485.03635049,0.00019178,2]
[373460352,1753015851099,-480.0,0.00019178,2]
[373460354,1753015851109,-480.0,0.00019178,2]
[373460356,1753015851118,-872.56,0.00019178,2]
[373460358,1753015851127,-480.0,0.00019178,2]
[373460360,1753015851137,-660.11,0.00019178,2]
[373460362,1753015851146,-480.0,0.00019178,2]
[373460365,1753015851156,-739.83,0.00019178,2]
[373460367,1753015851166,-154.955407,0.00019178,2]
[373460369,1753015851175,-480.0,0.00019178,2]
[373460371,1753015851184,-480.0,0.00019178,2]
[373460372,1753015851195,-1529.25,0.00019178,2]
[373460373,1753015851204,-2482.69,0.00019178,2]
[373460374,1753015851214,-480.0,0.00019178,2]
[373460375,1753015851228,-480.0,0.00019178,2]
[373460376,1753015851237,-500.0,0.00019178,2]
[373460377,1753015851247,-480.0,0.00019178,2]
[373460378,1753015851258,-2862.62,0.00019178,2]
[373460379,1753015851267,-480.0,0.00019178,2]
[373460380,1753015851278,-480.0,0.00019178,2]
[373460381,1753015851287,-480.0,0.00019178,2]
[373460382,1753015851297,-2487.15,0.00019178,2]
[373460383,1753015851307,-480.0,0.00019178,2]
[373460384,1753015851317,-763.88,0.00019178,2]
[373460385,1753015851327,-460.0,0.00019178,2]
[373460386,1753015851336,-1458.0,0.00019178,2]
[373460387,1753015851346,-480.0,0.00019178,2]
[373460388,1753015851356,-480.0,0.00019178,2]
[373460390,1753015851366,-480.0,0.00019178,2]
[373460391,1753015851375,-1119.65,0.00019178,2]
[373460392,1753015851385,-1214.52,0.00019178,2]
[373460394,1753015851395,-480.0,0.00019178,2]
[373460395,1753015851404,-3169.03,0.00019178,2]
[373460396,1753015851414,-461.96840746,0.00019178,2]
[373460397,1753015851423,-683.81,0.00019178,2]
[373460398,1753015851433,-1879.02,0.00019178,2]
[373460399,1753015851443,-1612.28,0.00019178,2]
[373460400,1753015851453,-539.3125985,0.00019178,2]
[373460401,1753015851463,-480.0,0.00019178,2]
[373460402,1753015851472,-613.1,0.00019178,2]
[373460403,1753015851482,-480.0,0.00019178,2]
[373460404,1753015851491,-2337.1,0.00019178,2]
[373460405,1753015851501,-1188.12,0.00019178,2]
[373460406,1753015851510,-480.0,0.00019178,2]
[373460407,1753015851520,-1468.58,0.00019178,2]
[373460408,1753015851530,-480.0,0.00019178,2]
[373460409,1753015851539,-480.0,0.00019178,2]
[373460410,1753015851549,-480.0,0.00019178,2]
[373460411,1753015851559,-480.0,0.00019178,2]
[373460412,1753015851569,-480.0,0.00019178,2]
[373460413,1753015851579,-1710.49,0.00019178,2]
[373460414,1753015851588,-480.0,0.00019178,2]
[373460415,1753015851598,-1208.58,0.00019178,2]
[373460416,1753015851607,-480.0,0.00019178,2]
[373460417,1753015851617,-480.0,0.00019178,2]
[373460418,1753015851627,-440.0,0.00019178,2]
[373460419,1753015851637,-480.0,0.00019178,2]
[373460420,1753015851646,-33535.87,0.00019178,2]
[373460421,1753015851656,-480.0,0.00019178,2]
[373460422,1753015851665,-507.14,0.00019178,2]
[373460423,1753015851675,-830.08,0.00019178,2]
[373460424,1753015851685,-200.762917,0.00019178,2]
[373460425,1753015851694,-201.286951,0.00019178,2]
[373460426,1753015851705,-480.0,0.00019178,2]
[373460427,1753015851715,-480.0,0.00019178,2]
[373460428,1753015851724,-480.0,0.00019178,2]
[373460429,1753015851734,-3753.89,0.00019178,2]
[373460430,1753015851744,-684.14,0.00019178,2]
[373460431,1753015851754,-480.0,0.00019178,2]
[373460432,1753015851763,-460.0,0.00019178,2]
[373460433,1753015851774,-5471.55,0.00019178,2]
[373460434,1753015851783,-480.0,0.00019178,2]
[373460435,1753015851793,-512.98,0.00019178,2]
[373460436,1753015851803,-1355.86,0.00019178,2]
[373460437,1753015851812,-480.0,0.00019178,2]
[373460438,1753015851822,-480.0,0.00019178,2]
[373460439,1753015851831,-1943.47,0.00019178,2]
[373460440,1753015851841,-615.23,0.00019178,2]
[373460441,1753015851850,-480.0,0.00019178,2]
[373460442,1753015851860,-1114.96,0.00019178,2]
[373460443,1753015851869,-75.75911145,0.00019178,2]
[373460444,1753015852300,-2792.39088855,0.00019178,2]
[373460445,1753015852310,-480.0,0.00019178,2]
[373460446,1753015852319,-656.86,0.00019178,2]
[373460447,1753015852328,-480.0,0.00019178,2]
[373460448,1753015852337,-480.0,0.00019178,2]
[373460449,1753015852347,-230.28143637,0.00019178,2]
[373460450,1753015852356,-480.0,0.00019178,2]
[373460451,1753015852365,-480.0,0.00019178,2]
[373460452,1753015852374,-480.0,0.00019178,2]
[373460453,1753015852383,-480.0,0.00019178,2]